fUST/lending_fUST_20241025
["ID","MTS","AMOUNT","RATE_DAILY","PERIOD"]
[340780885,1729804241207,-1762.67,0.00013698,2]
[340780886,1729804241217,-500.0,0.00013698,2]
[340780887,1729804241227,-500.0,0.00013698,2]
[340780888,1729804241239,-500.0,0.00013698,2]
[340780889,1729804241249,-505.36,0.00013698,2]
[340780890,1729804241259,-500.0,0.00013698,2]
[340780891,1729804241268,-500.0,0.00013698,2]
[340780892,1729804241278,-500.0,0.00013698,2]
[340780893,1729804241289,-500.0,0.00013698,2]
[340780894,1729804241300,-500.0,0.00013698,2]
[340780895,1729804241311,-500.0,0.00013698,2]
[340780896,1729804241321,-500.0,0.00013698,2]
[340780897,1729804241331,-470.17858247,0.00013698,2]
[340780898,1729804241341,-500.0,0.00013698,2]
[340780899,1729804241351,-500.0,0.00013698,2]
[340780900,1729804241361,-500.0,0.00013698,2]
[340780901,1729804241370,-500.0,0.00013698,2]
[340780902,1729804241380,-769.56,0.00013698,2]
[340780903,1729804241389,-500.0,0.00013698,2]
[340780904,1729804241400,-500.0,0.00013698,2]
[340780905,1729804241409,-500.0,0.00013698,2]
[340780906,1729804241419,-256.43008793,0.00013698,2]
[340780907,1729804241428,-500.0,0.00013698,2]
[340780908,1729804241437,-500.0,0.00013698,2]
[340780909,1729804241447,-876.2,0.00013698,2]
[340780910,1729804241457,-342.84866657,0.00013698,2]
[340780911,1729804241466,-500.0,0.00013698,2]
[340780912,1729804241476,-626.63,0.00013698,2]
[340780913,1729804241485,-500.0,0.00013698,2]
[340780914,1729804241494,-764.55,0.00013698,2]
[340780915,1729804241503,-500.0,0.00013698,2]
[340780916,1729804241512,-500.0,0.00013698,2]
[340780917,1729804241522,-2177.85,0.00013698,2]
[340780918,1729804241531,-500.0,0.00013698,2]
[340780919,1729804241540,-500.0,0.00013698,2]
[340780920,1729804241550,-597.51869157,0.00013698,2]
[340780921,1729804241560,-555.15,0.00013698,2]
[340780922,1729804241570,-500.0,0.00013698,2]
[340780923,1729804241579,-500.0,0.00013698,2]
[340780924,1729804241588,-500.0,0.00013698,2]
[340780925,1729804241598,-500.0,0.00013698,2]
[340780926,1729804241607,-500.0,0.00013698,2]
[340780927,1729804241616,-1092.91,0.00013698,2]
[340780928,1729804241626,-494.21347529,0.00013698,2]
[340780929,1729804241635,-608.46,0.00013698,2]
[340780930,1729804241644,-500.0,0.00013698,2]
[340780931,1729804241658,-500.0,0.00013698,2]
[340780932,1729804241667,-500.0,0.00013698,2]
[340780933,1729804241677,-500.0,0.00013698,2]
[340780934,1729804241686,-803.06,0.00013698,2]
[340780935,1729804241696,-500.0,0.00013698,2]
[340780936,1729804241706,-500.0,0.00013698,2]
[340780937,1729804241715,-500.0,0.00013698,2]
[340780938,1729804241724,-500.0,0.00013698,2]
[340780939,1729804241734,-500.0,0.00013698,2]
[340780940,1729804241743,-912.54,0.00013698,2]
[340780941,1729804241753,-500.0,0.00013698,2]
[340780942,1729804241763,-731.61,0.00013698,2]
[340780943,1729804241776,-1249.15,0.00013698,2]
[340780944,1729804241786,-2637.33,0.00013698,2]
[340780945,1729804241795,-500.0,0.00013698,2]
[340780946,1729804241805,-500.0,0.00013698,2]
[340780947,1729804241814,-500.0,0.00013698,2]
[340780948,1729804241824,-500.0,0.00013698,2]
[340780949,1729804241833,-1673.51,0.00013698,2]
[340780950,1729804241842,-151.0,0.00013698,2]
[340780951,1729804241851,-151.0,0.00013698,2]
[340780952,1729804241861,-151.0,0.00013698,2]
[340780953,1729804241870,-500.0,0.00013698,2]
[340780954,1729804241879,-160.0,0.00013698,2]
[340780955,1729804241888,-1711.13,0.00013698,2]
[340780956,1729804241898,-852.52,0.00013698,2]
[340780957,1729804241907,-916.42,0.00013698,2]
[340780958,1729804241916,-1749.2,0.00013698,2]
[340780959,1729804241927,-612.0,0.00013698,2]
[340780960,1729804241936,-500.0,0.00013698,2]
[340780961,1729804241945,-500.0,0.00013698,2]
[340780962,1729804241954,-500.0,0.00013698,2]
[340780963,1729804241964,-500.0,0.00013698,2]
[340780964,1729804241973,-563.89,0.00013698,2]
[340780965,1729804241982,-1471.57,0.00013698,2]
[340780966,1729804241991,-2900.85,0.00013698,2]
[340780967,1729804242001,-500.0,0.00013698,2]
[340780968,1729804242010,-500.0,0.00013698,2]
[340780969,1729804242020,-500.0,0.00013698,2]
[340780970,1729804242029,-1212.61,0.00013698,2]
[340780971,1729804242039,-500.0,0.00013698,2]
[340780972,1729804242049,-500.0,0.00013698,2]
[340780973,1729804242058,-900.46,0.00013698,2]
[340780974,1729804242067,-957.37,0.00013698,2]
[340780975,1729804242076,-500.0,0.00013698,2]
[340780976,1729804242086,-1802.48,0.00013698,2]
[340780977,1729804242101,-774.96,0.00013698,2]
[340780978,1729804242115,-1744.23,0.00013698,2]
[340780979,1729804242125,-500.0,0.00013698,2]
[340780980,1729804242135,-811.09,0.00013698,2]
[340780981,1729804242144,-3527.4,0.00013698,2]
[340780982,1729804242155,-500.0,0.00013698,2]
[340780983,1729804242165,-500.0,0.00013698,2]
[340780984,1729804242175,-3029.11,0.00013698,2]
[340780985,1729804242185,-500.0,0.00013698,2]
[340780986,1729804242195,-500.0,0.00013698,2]
[340780987,1729804242204,-1552.93,0.00013698,2]
[340780988,1729804242214,-1572.54,0.00013698,2]
[340780989,1729804242224,-500.0,0.00013698,2]
[340780990,1729804242235,-1315.11,0.00013698,2]
[340780991,1729804242246,-500.0,0.00013698,2]
[340780992,1729804242256,-500.0,0.00013698,2]
[340780993,1729804242266,-639.26130078,0.00013698,2]
[340780994,1729804242276,-629.28,0.00013698,2]
[340780995,1729804242286,-761.25,0.00013698,2]
[340780996,1729804242296,-1706.31,0.00013698,2]
[340780997,1729804242306,-765.8,0.00013698,2]
[340780998,1729804242316,-500.0,0.00013698,2]
[340780999,1729804242327,-241.52019221,0.00013698,2]
[340781000,1729804242337,-500.0,0.00013698,2]
[340781001,1729804242346,-500.0,0.00013698,2]
[340781002,1729804242355,-500.0,0.00013698,2]
[340781003,1729804242367,-944.26,0.00013698,2]
[340781004,1729804242378,-500.0,0.00013698,2]
[340781005,1729804242390,-550.17,0.00013698,2]
[340781006,1729804242402,-977.44,0.00013698,2]
[340781007,1729804242411,-756.39,0.00013698,2]
[340781008,1729804242421,-524.0,0.00013698,2]
[340781009,1729804242433,-500.0,0.00013698,2]
[340781010,1729804242444,-500.0,0.00013698,2]
[340781011,1729804242454,-500.0,0.00013698,2]
[340781012,1729804242465,-500.0,0.00013698,2]
[340781013,1729804242477,-500.0,0.00013698,2]
[340781014,1729804242489,-500.0,0.00013698,2]
[340781015,1729804242500,-874.97,0.00013698,2]
[340781016,1729804242511,-1017.33,0.00013698,2]
[340781017,1729804242521,-500.0,0.00013698,2]
[340781018,1729804242531,-811.13,0.00013698,2]
[340781019,1729804242541,-500.0,0.00013698,2]
[340781020,1729804242550,-1260.91,0.00013698,2]
[340781021,1729804242560,-888.89,0.00013698,2]
[340781022,1729804242569,-500.0,0.00013698,2]
[340781023,1729804242580,-432.02290859,0.00013698,2]
[340781024,1729804242590,-500.0,0.00013698,2]
[340781025,1729804242599,-500.0,0.00013698,2]
[340781026,1729804242608,-500.0,0.00013698,2]
[340781027,1729804242618,-500.0,0.00013698,2]
[340781028,1729804242628,-830.77,0.00013698,2]
[340781029,1729804242637,-603.56,0.00013698,2]
[340781030,1729804242648,-151.0,0.00013698,2]
[340781031,1729804242659,-151.0,0.00013698,2]
[340781032,1729804242668,-154.196492,0.00013698,2]
[340781033,1729804242678,-500.0,0.00013698,2]
[340781034,1729804242688,-151.0,0.00013698,2]
[340781035,1729804242699,-500.0,0.00013698,2]
[340781036,1729804242713,-151.0,0.00013698,2]
[340781037,1729804242723,-151.0,0.00013698,2]
[340781038,1729804242733,-401.26610981,0.00013698,2]
[340781039,1729804242743,-1051.36,0.00013698,2]
[340781040,1729804242752,-1156.49,0.00013698,2]
[340781041,1729804242762,-500.0,0.00013698,2]
[340781042,1729804242771,-500.0,0.00013698,2]
[340781043,1729804242781,-500.0,0.00013698,2]
[340781044,1729804242791,-500.0,0.00013698,2]
[340781045,1729804242801,-500.0,0.00013698,2]
[340781046,1729804242810,-991.17,0.00013698,2]
[340781047,1729804242820,-500.0,0.00013698,2]
[340781048,1729804242831,-500.0,0.00013698,2]
[340781049,1729804242842,-500.0,0.00013698,2]
[340781050,1729804242854,-950.08,0.00013698,2]
[340781051,1729804242866,-862.55,0.00013698,2]
[340781052,1729804242877,-500.0,0.00013698,2]
[340781053,1729804242888,-500.0,0.00013698,2]
[340781054,1729804242900,-569.68960701,0.00013698,2]
[340781055,1729804242910,-1476.39,0.00013698,2]
[340781056,1729804242919,-501.28214301,0.00013698,2]
[340781057,1729804242929,-257.60268491,0.00013698,2]
[340781071,1729804243728,-242.39731509,0.00013698,2]
[340781072,1729804243740,-500.0,0.00013698,2]
[340781073,1729804243753,-501.805955,0.00013698,2]
[340781074,1729804243765,-500.0,0.00013698,2]
[340781075,1729804243777,-500.0,0.00013698,2]
[340781076,1729804243790,-1457.3,0.00013698,2]
[340781077,1729804243803,-602.37,0.00013698,2]
[340781078,1729804243814,-526.70547726,0.00013698,2]
[340781082,1729804246023,-491.44452274,0.00013698,2]
[340781083,1729804246036,-176.55547726,0.00013698,2]
[340781087,1729804786240,239.0,0.000198,60]
[340781155,1729805435589,-162.764658,0.00012772,2]
[340781156,1729805435599,-162.764658,0.00012882,2]
[340781157,1729805435608,-162.764658,0.00012993,2]
[340781158,1729805435618,-162.764658,0.00013104,2]
[340781159,1729805435627,-162.764658,0.00013215,2]
[340781160,1729805435636,-153.0,0.000133,2]
[340781161,1729805435645,-153.0,0.000133,2]
[340781162,1729805435655,-153.0,0.000133,2]
[340781163,1729805435664,-153.0,0.000133,2]
[340781164,1729805435674,-162.764658,0.00013326,2]
[340781165,1729805435683,-72.87584841,0.00013437,2]
[340781223,1729805438468,-89.88880959,0.00013437,2]
[340781224,1729805438479,-493.92393373,0.00013598,2]
[340781225,1729805438489,-500.0,0.00013673,2]
[340781226,1729805438499,-500.0,0.00013673,2]
[340781227,1729805438508,-300.0,0.00013677,2]
[340781228,1729805438518,-300.0,0.00013677,2]
[340781229,1729805438527,-391.8551543,0.00013678,2]
[340781230,1729805438537,-20331.2849038,0.00013678,2]
[340781231,1729805438546,-10462.68271536,0.00013678,2]
[340781232,1729805438559,-2724.77383364,0.00013678,2]
[340781233,1729805438571,-5038.79299479,0.00013678,2]
[340781259,1729805443282,-49748.54556661,0.00013678,2]
[340781261,1729805443293,-10165.6424519,0.00013679,2]
[340781262,1729805443303,-33987.3975552,0.00013679,2]
[340781264,1729805443313,-69040.18711163,0.00013688,2]
[340781270,1729805443371,-2848.455304,0.00013688,2]
[340781283,1729805443533,-500.0,0.00013673,2]
[340781284,1729805443544,-9436.49719977,0.00013688,2]
[340781285,1729805443553,-94166.03318056,0.00013688,2]
[340781286,1729805443565,-534.96,0.00013688,2]
[340781287,1729805443605,-1150.23061612,0.00013688,2]
[340781306,1729805446265,-71956.49999999,0.00013688,2]
[340781308,1729805512008,236.0,0.000198,60]
[340781360,1729806560005,224.0,0.000198,60]
[340781447,1729806638481,-166.665144,0.00011956,2]
[340781448,1729806638491,-943.75273886,0.00012393,2]
[340781449,1729806638501,-250.0,0.00012493,2]
[340781450,1729806638511,-6909.0287707,0.00012518,2]
[340781451,1729806638521,-320.066153,0.0001254,2]
[340781452,1729806638530,-320.066153,0.00012543,2]
[340781453,1729806638541,-320.066153,0.00012547,2]
[340781454,1729806638552,-320.066153,0.0001255,2]
[340781455,1729806638562,-300.0,0.00012552,2]
[340781456,1729806638572,-300.0,0.00012552,2]
[340781457,1729806638581,-320.066153,0.00012553,2]
[340781458,1729806638591,-320.066153,0.00012556,2]
[340781459,1729806638601,-320.066153,0.0001256,2]
[340781460,1729806638610,-320.066153,0.00012563,2]
[340781461,1729806638620,-320.066153,0.00012566,2]
[340781462,1729806638629,-320.066153,0.0001257,2]
[340781463,1729806638640,-320.066153,0.00012573,2]
[340781464,1729806638650,-320.066153,0.00012576,2]
[340781465,1729806638660,-166.665144,0.00012579,2]
[340781466,1729806638669,-320.066153,0.00012579,2]
[340781467,1729806638681,-320.066153,0.00012583,2]
[340781468,1729806638690,-320.066153,0.00012586,2]
[340781470,1729806638700,-320.066153,0.00012589,2]
[340781471,1729806638709,-320.066153,0.00012593,2]
[340781473,1729806638719,-320.066153,0.00012596,2]
[340781475,1729806638728,-320.066153,0.00012599,2]
[340781476,1729806638739,-320.066153,0.00012602,2]
[340781477,1729806638749,-174.62220377,0.00013587,2]
[340781478,1729806638759,-1000.0,0.00013598,2]
[340781479,1729806638771,-153.0,0.000136,2]
[340781480,1729806638781,-153.0,0.000136,2]
[340781481,1729806638791,-477.66248038,0.00013668,2]
[340781482,1729806638802,-6920.82803676,0.00013668,2]
[340781483,1729806638822,-11944.51231104,0.00013668,2]
[340781484,1729806638832,-22584.8997089,0.00013668,2]
[340781485,1729806638844,-500.0,0.00013673,2]
[340781486,1729806638857,-500.0,0.00013673,2]
[340781487,1729806638867,-500.0,0.00013673,2]
[340781488,1729806638876,-500.0,0.00013673,2]
[340781489,1729806638886,-500.0,0.00013673,2]
[340781490,1729806638896,-500.94782807,0.00013673,2]
[340781491,1729806638905,-502.33189578,0.00013673,2]
[340781492,1729806638915,-18865.3403478,0.00013677,2]
[340781493,1729806638926,-22584.8997089,0.00013677,2]
[340781494,1729806638937,-1785.96790974,0.00013678,2]
[340781495,1729806638951,-2206.90380327,0.00013678,2]
[340781502,1729806640536,-71468.48967799,0.00013678,2]
[340781503,1729806640546,-90339.5988354,0.00013678,2]
[340781504,1729806640556,-151.0,0.00013688,2]
[340781505,1729806640567,-151.0,0.00013688,2]
[340781506,1729806640577,-151.0,0.00013688,2]
[340781507,1729806640587,-151.0,0.00013688,2]
[340781508,1729806640597,-155.986086,0.00013688,2]
[340781509,1729806640608,-155.986086,0.00013688,2]
[340781510,1729806640618,-151.43807,0.00013688,2]
[340781511,1729806640627,-151.0,0.00013688,2]
[340781512,1729806640638,-113192.042087,0.00013688,2]
[340781513,1729806640649,-158094.297962,0.00013688,2]
[340781514,1729806640660,-231.0,0.0001369,2]
[340781515,1729806640669,-5262.34606395,0.00013697,2]
[340781516,1729806640679,-500.0,0.00013698,2]
[340781517,1729806640689,-500.0,0.00013698,2]
[340781518,1729806640698,-500.0,0.00013698,2]
[340781519,1729806640709,-500.0,0.00013698,2]
[340781520,1729806640721,-500.0,0.00013698,2]
[340781521,1729806640731,-500.0,0.00013698,2]
[340781522,1729806640742,-500.0,0.00013698,2]
[340781523,1729806640751,-500.0,0.00013698,2]
[340781524,1729806640761,-500.0,0.00013698,2]
[340781525,1729806640774,-500.0,0.00013698,2]
[340781526,1729806640784,-500.0,0.00013698,2]
[340781527,1729806640799,-394.44066095,0.00013698,2]
[340781528,1729806640811,-541.39848604,0.00013698,2]
[340781529,1729806640822,-500.0,0.00013698,2]
[340781530,1729806640832,-500.0,0.00013698,2]
[340781531,1729806640844,-500.0,0.00013698,2]
[340781532,1729806640854,-500.0,0.00013698,2]
[340781533,1729806640864,-500.0,0.00013698,2]
[340781534,1729806640874,-500.0,0.00013698,2]
[340781535,1729806640883,-500.0,0.00013698,2]
[340781536,1729806640893,-500.0,0.00013698,2]
[340781537,1729806640904,-500.0,0.00013698,2]
[340781538,1729806640915,-500.0,0.00013698,2]
[340781539,1729806640925,-500.0,0.00013698,2]
[340781540,1729806640936,-500.0,0.00013698,2]
[340781541,1729806640946,-500.0,0.00013698,2]
[340781542,1729806640956,-500.0,0.00013698,2]
[340781543,1729806640966,-500.0,0.00013698,2]
[340781544,1729806640976,-500.0,0.00013698,2]
[340781545,1729806640986,-500.0,0.00013698,2]
[340781546,1729806640997,-500.0,0.00013698,2]
[340781547,1729806641006,-500.0,0.00013698,2]
[340781548,1729806641016,-500.0,0.00013698,2]
[340781549,1729806641026,-500.0,0.00013698,2]
[340781550,1729806641036,-500.0,0.00013698,2]
[340781551,1729806641045,-500.0,0.00013698,2]
[340781552,1729806641056,-500.0,0.00013698,2]
[340781553,1729806641067,-500.0,0.00013698,2]
[340781554,1729806641077,-500.0,0.00013698,2]
[340781555,1729806641087,-500.0,0.00013698,2]
[340781556,1729806641098,-500.0,0.00013698,2]
[340781557,1729806641107,-500.0,0.00013698,2]
[340781558,1729806641117,-500.0,0.00013698,2]
[340781559,1729806641127,-500.0,0.00013698,2]
[340781560,1729806641137,-500.0,0.00013698,2]
[340781561,1729806641149,-500.0,0.00013698,2]
[340781562,1729806641159,-500.0,0.00013698,2]
[340781563,1729806641169,-500.0,0.00013698,2]
[340781564,1729806641179,-500.0,0.00013698,2]
[340781565,1729806641189,-500.0,0.00013698,2]
[340781566,1729806641199,-645.77991512,0.00013698,2]
[340781567,1729806641208,-500.0,0.00013698,2]
[340781568,1729806641217,-500.0,0.00013698,2]
[340781569,1729806641227,-500.0,0.00013698,2]
[340781570,1729806641238,-500.0,0.00013698,2]
[340781571,1729806641248,-500.0,0.00013698,2]
[340781572,1729806641258,-500.0,0.00013698,2]
[340781573,1729806641267,-500.0,0.00013698,2]
[340781574,1729806641277,-500.0,0.00013698,2]
[340781575,1729806641287,-500.0,0.00013698,2]
[340781576,1729806641297,-500.0,0.00013698,2]
[340781577,1729806641307,-500.0,0.00013698,2]
[340781578,1729806641317,-500.0,0.00013698,2]
[340781579,1729806641327,-500.0,0.00013698,2]
[340781580,1729806641337,-500.0,0.00013698,2]
[340781581,1729806641346,-500.0,0.00013698,2]
[340781582,1729806641356,-500.0,0.00013698,2]
[340781583,1729806641365,-500.0,0.00013698,2]
[340781584,1729806641375,-500.0,0.00013698,2]
[340781585,1729806641385,-500.0,0.00013698,2]
[340781586,1729806641395,-500.0,0.00013698,2]
[340781587,1729806641404,-500.0,0.00013698,2]
[340781588,1729806641414,-500.0,0.00013698,2]
[340781589,1729806641424,-500.0,0.00013698,2]
[340781590,1729806641434,-500.0,0.00013698,2]
[340781591,1729806641444,-500.0,0.00013698,2]
[340781592,1729806641453,-512.39217909,0.00013698,2]
[340781593,1729806641463,-537.42922845,0.00013698,2]
[340781594,1729806641473,-500.0,0.00013698,2]
[340781595,1729806641483,-577.24577294,0.00013698,2]
[340781596,1729806641492,-500.0,0.00013698,2]
[340781597,1729806641502,-530.33220987,0.00013698,2]
[340781598,1729806641513,-500.0,0.00013698,2]
[340781599,1729806641523,-325.28848773,0.00013698,2]
[340781600,1729806641532,-521.93899784,0.00013698,2]
[340781601,1729806641542,-209.7852713,0.00013698,2]
[340781602,1729806641552,-500.0,0.00013698,2]
[340781603,1729806641562,-500.0,0.00013698,2]
[340781604,1729806641571,-500.0,0.00013698,2]
[340781605,1729806641582,-600.90232501,0.00013698,2]
[340781606,1729806641592,-500.0,0.00013698,2]
[340781607,1729806641602,-151.0,0.00013698,2]
[340781608,1729806641612,-300.89049391,0.00013698,2]
[340781609,1729806641622,-1391.2,0.00013698,2]
[340781610,1729806641631,-676.05,0.00013698,2]
[340781611,1729806641641,-500.0,0.00013698,2]
[340781612,1729806641651,-500.0,0.00013698,2]
[340781613,1729806641661,-500.0,0.00013698,2]
[340781614,1729806641670,-804.66,0.00013698,2]
[340781615,1729806641679,-881.72,0.00013698,2]
[340781616,1729806641689,-500.0,0.00013698,2]
[340781617,1729806641698,-500.0,0.00013698,2]
[340781618,1729806641707,-1667.15,0.00013698,2]
[340781619,1729806641718,-500.0,0.00013698,2]
[340781620,1729806641728,-862.32,0.00013698,2]
[340781621,1729806641737,-1216.62,0.00013698,2]
[340781622,1729806641746,-952.23,0.00013698,2]
[340781623,1729806641756,-500.0,0.00013698,2]
[340781624,1729806641766,-500.0,0.00013698,2]
[340781625,1729806641778,-500.0,0.00013698,2]
[340781626,1729806641788,-517.36833883,0.00013698,2]
[340781627,1729806641797,-500.0,0.00013698,2]
[340781628,1729806641808,-500.0,0.00013698,2]
[340781629,1729806641818,-500.0,0.00013698,2]
[340781630,1729806641828,-706.99,0.00013698,2]
[340781631,1729806641837,-500.0,0.00013698,2]
[340781632,1729806641848,-500.0,0.00013698,2]
[340781633,1729806641858,-500.0,0.00013698,2]
[340781634,1729806641873,-500.0,0.00013698,2]
[340781635,1729806641887,-504.01211603,0.00013698,2]
[340781636,1729806641897,-500.0,0.00013698,2]
[340781637,1729806641909,-536.97410494,0.00013698,2]
[340781638,1729806641921,-500.0,0.00013698,2]
[340781639,1729806641933,-718.32,0.00013698,2]
[340781640,1729806641944,-864.65,0.00013698,2]
[340781641,1729806641954,-500.0,0.00013698,2]
[340781642,1729806641965,-500.0,0.00013698,2]
[340781643,1729806641975,-500.0,0.00013698,2]
[340781644,1729806641985,-360.06525558,0.00013698,2]
[340781645,1729806641994,-500.0,0.00013698,2]
[340781646,1729806642004,-151.0,0.00013698,2]
[340781647,1729806642014,-500.0,0.00013698,2]
[340781648,1729806642024,-500.0,0.00013698,2]
[340781649,1729806642034,-500.0,0.00013698,2]
[340781650,1729806642044,-500.0,0.00013698,2]
[340781651,1729806642055,-500.0,0.00013698,2]
[340781652,1729806642064,-1619.39,0.00013698,2]
[340781653,1729806642075,-500.0,0.00013698,2]
[340781654,1729806642085,-674.69,0.00013698,2]
[340781655,1729806642094,-500.0,0.00013698,2]
[340781656,1729806642104,-248.79080949,0.00013698,2]
[340781657,1729806642114,-151.0,0.00013698,2]
[340781658,1729806642125,-500.0,0.00013698,2]
[340781659,1729806642135,-151.0,0.00013698,2]
[340781660,1729806642145,-1005.55,0.00013698,2]
[340781661,1729806642156,-500.0,0.00013698,2]
[340781662,1729806642165,-826.45,0.00013698,2]
[340781663,1729806642176,-1354.63,0.00013698,2]
[340781664,1729806642186,-500.0,0.00013698,2]
[340781665,1729806642196,-500.0,0.00013698,2]
[340781666,1729806642206,-500.0,0.00013698,2]
[340781667,1729806642216,-400.40102105,0.00013698,2]
[340781668,1729806642225,-500.0,0.00013698,2]
[340781669,1729806642236,-500.0,0.00013698,2]
[340781670,1729806642246,-500.0,0.00013698,2]
[340781671,1729806642255,-500.0,0.00013698,2]
[340781672,1729806642265,-661.98,0.00013698,2]
[340781673,1729806642274,-610.79,0.00013698,2]
[340781674,1729806642284,-597.51869157,0.00013698,2]
[340781675,1729806642294,-538.31,0.00013698,2]
[340781676,1729806642304,-151.0,0.00013698,2]
[340781677,1729806642314,-504.85714748,0.00013698,2]
[340781678,1729806642324,-1382.9,0.00013698,2]
[340781679,1729806642335,-1066.44,0.00013698,2]
[340781680,1729806642344,-942.0,0.00013698,2]
[340781681,1729806642354,-728.93,0.00013698,2]
[340781682,1729806642365,-583.58,0.00013698,2]
[340781683,1729806642374,-500.0,0.00013698,2]
[340781684,1729806642384,-151.0,0.00013698,2]
[340781685,1729806642394,-500.0,0.00013698,2]
[340781686,1729806642404,-940.55,0.00013698,2]
[340781687,1729806642414,-500.0,0.00013698,2]
[340781688,1729806642424,-500.0,0.00013698,2]
[340781689,1729806642434,-151.0,0.00013698,2]
[340781690,1729806642443,-151.0,0.00013698,2]
[340781691,1729806642453,-500.0,0.00013698,2]
[340781692,1729806642463,-500.0,0.00013698,2]
[340781693,1729806642474,-151.0,0.00013698,2]
[340781694,1729806642489,-500.0,0.00013698,2]
[340781695,1729806642501,-151.0,0.00013698,2]
[340781696,1729806642510,-500.0,0.00013698,2]
[340781697,1729806642519,-2637.33,0.00013698,2]
[340781698,1729806642529,-500.0,0.00013698,2]
[340781699,1729806642539,-912.54,0.00013698,2]
[340781700,1729806642548,-1673.51,0.00013698,2]
[340781701,1729806642558,-500.0,0.00013698,2]
[340781702,1729806642568,-500.0,0.00013698,2]
[340781703,1729806642577,-561.44923914,0.00013698,2]
[340781704,1729806642587,-232.11165422,0.00013698,2]
[340781705,1729806642596,-500.0,0.00013698,2]
[340781706,1729806642605,-151.0,0.00013698,2]
[340781707,1729806642615,-852.52,0.00013698,2]
[340781708,1729806642625,-500.0,0.00013698,2]
[340781709,1729806642634,-151.0,0.00013698,2]
[340781710,1729806642645,-500.0,0.00013698,2]
[340781711,1729806642654,-500.0,0.00013698,2]
[340781712,1729806642665,-500.0,0.00013698,2]
[340781713,1729806642674,-500.0,0.00013698,2]
[340781714,1729806642684,-419.38174921,0.00013698,2]
[340781715,1729806642694,-576.40457011,0.00013698,2]
[340781716,1729806642703,-500.0,0.00013698,2]
[340781717,1729806642713,-500.0,0.00013698,2]
[340781718,1729806642724,-1749.2,0.00013698,2]
[340781719,1729806642736,-565.86678767,0.00013698,2]
[340781720,1729806642747,-1005.05,0.00013698,2]
[340781721,1729806642757,-500.0,0.00013698,2]
[340781722,1729806642768,-888.66,0.00013698,2]
[340781723,1729806642779,-500.0,0.00013698,2]
[340781724,1729806642789,-1471.57,0.00013698,2]
[340781725,1729806642798,-500.0,0.00013698,2]
[340781726,1729806642809,-151.0,0.00013698,2]
[340781727,1729806642820,-500.0,0.00013698,2]
[340781728,1729806642830,-903.56,0.00013698,2]
[340781729,1729806642841,-151.0,0.00013698,2]
[340781730,1729806642851,-500.0,0.00013698,2]
[340781731,1729806642861,-1762.67,0.00013698,2]
[340781732,1729806642870,-623.16,0.00013698,2]
[340781733,1729806642880,-1212.61,0.00013698,2]
[340781734,1729806642890,-2900.85,0.00013698,2]
[340781735,1729806642899,-500.0,0.00013698,2]
[340781736,1729806642909,-500.0,0.00013698,2]